fUST/lending_fUST_20250427
["ID","MTS","AMOUNT","RATE_DAILY","PERIOD"]
[359144681,1745739032709,-238.5224334,0.00015015,2]
[359144682,1745739032718,-300.0,0.00015191,2]
[359144683,1745739032728,-4557.10555544,0.00015192,2]
[359144684,1745739032782,-2612.51678236,0.00015192,2]
[359144685,1745739032791,-500.0,0.00016164,2]
[359144686,1745739032801,-500.0,0.00016398,2]
[359144687,1745739032811,-500.0,0.00016398,2]
[359144688,1745739032820,-500.0,0.00016398,2]
[359144689,1745739032830,-611.60328466,0.00016398,2]
[359144690,1745739032839,-500.0,0.00016398,2]
[359144691,1745739032850,-500.0,0.00016398,2]
[359144692,1745739032859,-500.0,0.00016398,2]
[359144693,1745739032869,-500.0,0.00016398,2]
[359144694,1745739032879,-500.0,0.00016398,2]
[359144695,1745739032888,-500.0,0.00016398,2]
[359144696,1745739032897,-500.0,0.00016398,2]
[359144697,1745739032906,-500.0,0.00016398,2]
[359144698,1745739032915,-500.0,0.00016398,2]
[359144699,1745739032925,-500.0,0.00016398,2]
[359144700,1745739032935,-500.0,0.00016398,2]
[359144701,1745739032944,-500.0,0.00016398,2]
[359144702,1745739032954,-500.0,0.00016398,2]
[359144703,1745739032963,-500.0,0.00016398,2]
[359144704,1745739032972,-500.0,0.00016398,2]
[359144705,1745739032982,-500.0,0.00016398,2]
[359144706,1745739032991,-457.71286797,0.00016398,2]
[359144707,1745739038722,-42.28713203,0.00016398,2]
[359144708,1745739038732,-500.0,0.00016398,2]
[359144709,1745739038742,-500.0,0.00016398,2]
[359144710,1745739038751,-500.0,0.00016398,2]
[359144711,1745739038761,-500.0,0.00016398,2]
[359144712,1745739038770,-450.0,0.00016398,2]
[359144713,1745739038780,-500.0,0.00016398,2]
[359144714,1745739038790,-500.0,0.00016398,2]
[359144715,1745739038799,-500.0,0.00016398,2]
[359144716,1745739038809,-5361.83226796,0.000164,2]
[359144717,1745739038821,-2762.05447715,0.000164,2]
[359144718,1745739038888,-6513.99134567,0.000164,2]
[359144719,1745739038898,-376.53548783,0.00016429,2]
[359144720,1745739038907,-500.0,0.00016429,2]
[359144721,1745739038917,-322.52885028,0.00016429,2]
[359144722,1745739038926,-187.50747664,0.00016429,2]
[359144723,1745739038936,-388.62580958,0.00016429,2]
[359144724,1745739038945,-16410.96148782,0.0001643,2]
[359144725,1745739038957,-20642.39633162,0.0001643,2]
[359144731,1745739041122,-26345.55218056,0.0001643,2]
[359144732,1745739041132,-512.05212917,0.00016438,2]
[359144733,1745739041141,-215.6748101,0.00016438,2]
[359144734,1745739041150,-500.0,0.00016438,2]
[359144735,1745739041159,-400.0,0.00016438,2]
[359144736,1745739041169,-500.0,0.00016438,2]
[359144737,1745739041180,-400.0,0.00016438,2]
[359144738,1745739041189,-400.0,0.00016438,2]
[359144739,1745739041199,-500.0,0.00016438,2]
[359144740,1745739041209,-353.06216664,0.00016438,2]
[359144741,1745739041218,-400.0,0.00016438,2]
[359144742,1745739041227,-363.48912882,0.00016438,2]
[359144743,1745739041240,-629.97087118,0.00016438,2]
[359144745,1745739041249,-500.0,0.00016438,2]
[359144747,1745739041259,-300.82912886,0.00016438,2]
[359144764,1745739043763,-199.17087114,0.00016438,2]
[359144765,1745739043774,-117.14792601,0.00016438,2]
[359144766,1745739043786,-67.82612084,0.00016438,2]
[359144767,1745739043796,-500.0,0.00016438,2]
[359144768,1745739043805,-400.0,0.00016438,2]
[359144769,1745739043815,-500.0,0.00016438,2]
[359144770,1745739043824,-500.0,0.00016438,2]
[359144771,1745739043833,-400.0,0.00016438,2]
[359144772,1745739043843,-405.92440869,0.00016438,2]
[359144773,1745739043852,-400.0,0.00016438,2]
[359144774,1745739043862,-500.0,0.00016438,2]
[359144775,1745739043871,-500.0,0.00016438,2]
[359144776,1745739043880,-500.0,0.00016438,2]
[359144777,1745739043890,-500.0,0.00016438,2]
[359144778,1745739043899,-400.0,0.00016438,2]
[359144781,1745739043908,-400.0,0.00016438,2]
[359144783,1745739043917,-400.0,0.00016438,2]
[359144785,1745739043927,-400.0,0.00016438,2]
[359144786,1745739043937,-400.0,0.00016438,2]
[359144790,1745739043948,-400.0,0.00016438,2]
[359144793,1745739043957,-400.0,0.00016438,2]
[359144796,1745739043966,-400.0,0.00016438,2]
[359144798,1745739043976,-400.0,0.00016438,2]
[359144800,1745739043985,-504.51910402,0.00016438,2]
[359144801,1745739043994,-400.0,0.00016438,2]
[359144802,1745739044005,-400.0,0.00016438,2]
[359144803,1745739044014,-500.0,0.00016438,2]
[359144804,1745739044023,-400.0,0.00016438,2]
[359144805,1745739044034,-400.0,0.00016438,2]
[359144806,1745739044044,-500.0,0.00016438,2]
[359144807,1745739044054,-400.0,0.00016438,2]
[359144808,1745739044065,-501.66426566,0.00016438,2]
[359144809,1745739044075,-400.0,0.00016438,2]
[359144810,1745739044084,-1115.45,0.00016438,2]
[359144811,1745739044094,-200.0,0.00016438,2]
[359144812,1745739044103,-400.0,0.00016438,2]
[359144813,1745739044112,-400.0,0.00016438,2]
[359144814,1745739044122,-505.23380968,0.00016438,2]
[359144815,1745739044131,-500.0,0.00016438,2]
[359144816,1745739044141,-1043.26,0.00016438,2]
[359144817,1745739044151,-1089.57,0.00016438,2]
[359144818,1745739044160,-400.0,0.00016438,2]
[359144819,1745739044170,-200.0,0.00016438,2]
[359144820,1745739044180,-400.0,0.00016438,2]
[359144821,1745739044189,-459.8,0.00016438,2]
[359144822,1745739044199,-500.0,0.00016438,2]
[359144823,1745739044208,-500.0,0.00016438,2]
[359144824,1745739044218,-400.0,0.00016438,2]
[359144825,1745739044228,-509.75847061,0.00016438,2]
[359144826,1745739044237,-507.01303529,0.00016438,2]
[359144827,1745739044247,-400.0,0.00016438,2]
[359144828,1745739044256,-400.0,0.00016438,2]
[359144829,1745739044265,-400.0,0.00016438,2]
[359144830,1745739044275,-200.0,0.00016438,2]
[359144831,1745739044284,-400.0,0.00016438,2]
[359144832,1745739044294,-400.0,0.00016438,2]
[359144833,1745739044303,-400.0,0.00016438,2]
[359144835,1745739044458,-1281.71,0.00016438,2]
[359144836,1745739044469,-440.28856717,0.00016438,2]
[359144837,1745739044479,-400.0,0.00016438,2]
[359144838,1745739044489,-400.0,0.00016438,2]
[359144839,1745739044500,-500.0,0.00016438,2]
[359144840,1745739044509,-400.0,0.00016438,2]
[359144841,1745739044519,-400.0,0.00016438,2]
[359144842,1745739044528,-400.0,0.00016438,2]
[359144843,1745739044538,-500.0,0.00016438,2]
[359144844,1745739044547,-400.0,0.00016438,2]
[359144845,1745739044557,-400.0,0.00016438,2]
[359144846,1745739044567,-400.0,0.00016438,2]
[359144847,1745739044576,-500.0,0.00016438,2]
[359144848,1745739044586,-400.0,0.00016438,2]
[359144849,1745739044596,-400.0,0.00016438,2]
[359144850,1745739044606,-464.02631578,0.00016438,2]
[359144851,1745739044615,-400.0,0.00016438,2]
[359144852,1745739044625,-400.0,0.00016438,2]
[359144853,1745739044635,-400.0,0.00016438,2]
[359144854,1745739044644,-500.0,0.00016438,2]
[359144855,1745739044654,-400.0,0.00016438,2]
[359144856,1745739044664,-500.0,0.00016438,2]
[359144857,1745739044676,-400.0,0.00016438,2]
[359144858,1745739044686,-500.0,0.00016438,2]
[359144859,1745739044695,-500.0,0.00016438,2]
[359144860,1745739044705,-506.06511903,0.00016438,2]
[359144861,1745739044714,-400.0,0.00016438,2]
[359144862,1745739044724,-502.75516531,0.00016438,2]
[359144863,1745739044734,-400.0,0.00016438,2]
[359144864,1745739044743,-510.1677712,0.00016438,2]
[359144865,1745739044753,-500.0,0.00016438,2]
[359144866,1745739044762,-500.0,0.00016438,2]
[359144867,1745739044771,-400.0,0.00016438,2]
[359144868,1745739044781,-400.0,0.00016438,2]
[359144869,1745739044791,-500.0,0.00016438,2]
[359144870,1745739044800,-400.0,0.00016438,2]
[359144871,1745739044810,-500.0,0.00016438,2]
[359144872,1745739044819,-500.0,0.00016438,2]
[359144873,1745739044829,-500.0,0.00016438,2]
[359144874,1745739044838,-500.0,0.00016438,2]
[359144875,1745739044848,-500.0,0.00016438,2]
[359144876,1745739044857,-500.0,0.00016438,2]
[359144877,1745739044867,-500.0,0.00016438,2]
[359144878,1745739044877,-500.0,0.00016438,2]
[359144879,1745739044886,-500.0,0.00016438,2]
[359144880,1745739044896,-500.0,0.00016438,2]
[359144881,1745739044905,-500.0,0.00016438,2]
[359144882,1745739044915,-500.0,0.00016438,2]
[359144883,1745739044924,-500.0,0.00016438,2]
[359144884,1745739044933,-500.0,0.00016438,2]
[359144885,1745739044943,-500.0,0.00016438,2]
[359144886,1745739044953,-400.0,0.00016438,2]
[359144887,1745739044963,-400.0,0.00016438,2]
[359144888,1745739044972,-500.0,0.00016438,2]
[359144889,1745739044982,-400.0,0.00016438,2]
[359144890,1745739044992,-500.0,0.00016438,2]
[359144891,1745739045002,-400.0,0.00016438,2]
[359144892,1745739045012,-400.50411176,0.00016438,2]
[359144893,1745739045023,-503.38617809,0.00016438,2]
[359144894,1745739045033,-500.0,0.00016438,2]
[359144895,1745739045042,-500.0,0.00016438,2]
[359144896,1745739045053,-500.0,0.00016438,2]
[359144897,1745739045062,-500.0,0.00016438,2]
[359144898,1745739045072,-500.0,0.00016438,2]
[359144899,1745739045082,-500.0,0.00016438,2]
[359144900,1745739045091,-500.0,0.00016438,2]
[359144901,1745739045101,-400.0,0.00016438,2]
[359144902,1745739045111,-500.0,0.00016438,2]
[359144903,1745739045121,-400.0,0.00016438,2]
[359144904,1745739045131,-500.0,0.00016438,2]
[359144905,1745739045143,-510.79341671,0.00016438,2]
[359144906,1745739045152,-500.0,0.00016438,2]
[359144907,1745739045163,-522.98136977,0.00016438,2]
[359144908,1745739045172,-500.0,0.00016438,2]
[359144909,1745739045182,-500.0,0.00016438,2]
[359144910,1745739045191,-500.0,0.00016438,2]
[359144911,1745739045201,-521.25927879,0.00016438,2]
[359144912,1745739045210,-500.0,0.00016438,2]
[359144913,1745739045219,-400.0,0.00016438,2]
[359144914,1745739045229,-500.0,0.00016438,2]
[359144915,1745739045240,-400.0,0.00016438,2]
[359144916,1745739045251,-500.0,0.00016438,2]
[359144917,1745739045262,-500.0,0.00016438,2]
[359144918,1745739045271,-400.0,0.00016438,2]
[359144919,1745739045283,-500.0,0.00016438,2]
[359144920,1745739045295,-400.0,0.00016438,2]
[359144921,1745739045305,-500.0,0.00016438,2]
[359144922,1745739045313,-500.0,0.00016438,2]
[359144923,1745739045321,-400.0,0.00016438,2]
[359144924,1745739045329,-500.0,0.00016438,2]
[359144925,1745739045337,-500.0,0.00016438,2]
[359144926,1745739045346,-400.0,0.00016438,2]
[359144927,1745739045355,-1108.69,0.00016438,2]
[359144928,1745739045363,-500.0,0.00016438,2]
[359144929,1745739045372,-400.0,0.00016438,2]
[359144930,1745739045381,-500.0,0.00016438,2]
[359144931,1745739045390,-500.0,0.00016438,2]
[359144932,1745739045399,-400.0,0.00016438,2]
[359144933,1745739045408,-400.0,0.00016438,2]
[359144934,1745739045417,-1730.66,0.00016438,2]
[359144935,1745739045427,-2345.11,0.00016438,2]
[359144936,1745739045436,-400.0,0.00016438,2]
[359144937,1745739045445,-400.0,0.00016438,2]
[359144938,1745739045455,-400.0,0.00016438,2]
[359144939,1745739045465,-3125.89,0.00016438,2]
[359144940,1745739045475,-400.0,0.00016438,2]
[359144941,1745739045484,-2076.58,0.00016438,2]
[359144942,1745739045493,-400.0,0.00016438,2]
[359144943,1745739045503,-400.0,0.00016438,2]
[359144944,1745739045511,-400.0,0.00016438,2]
[359144945,1745739045520,-546.8,0.00016438,2]
[359144946,1745739045530,-400.0,0.00016438,2]
[359144947,1745739045539,-400.0,0.00016438,2]
[359144948,1745739045548,-1022.22863644,0.00016438,2]
[359144949,1745739045558,-400.0,0.00016438,2]
[359144950,1745739045567,-1570.31,0.00016438,2]
[359144951,1745739045577,-1448.83,0.00016438,2]
[359144952,1745739045586,-400.0,0.00016438,2]
[359144953,1745739045596,-400.0,0.00016438,2]
[359144954,1745739045605,-200.0,0.00016438,2]
[359144955,1745739045614,-400.0,0.00016438,2]
[359144956,1745739045623,-400.0,0.00016438,2]
[359144957,1745739045632,-1721.49,0.00016438,2]
[359144958,1745739045641,-112.40271373,0.00016438,2]
[359144963,1745739046918,-1361.63728627,0.00016438,2]
[359144964,1745739046928,-305.02138042,0.00016438,2]
[359144965,1745739046938,-400.0,0.00016438,2]
[359144966,1745739046947,-400.0,0.00016438,2]
[359144967,1745739046956,-400.0,0.00016438,2]
[359144968,1745739046965,-400.0,0.00016438,2]
[359144969,1745739046974,-1907.62,0.00016438,2]
[359144970,1745739046984,-500.0,0.00016438,2]
[359144971,1745739046993,-400.0,0.00016438,2]
[359144972,1745739047002,-380.45311835,0.00016438,2]
[359144973,1745739047059,-19.54688165,0.00016438,2]
[359144974,1745739047068,-400.0,0.00016438,2]
[359144975,1745739047078,-400.0,0.00016438,2]
[359144976,1745739047087,-1106.08910025,0.00016438,2]
[359144977,1745739047139,-316.65089975,0.00016438,2]
[359144978,1745739047150,-193.03714721,0.00016438,2]
[359144980,1745739435888,5000.0,0.00021,10]
[359145012,1745740231771,-1200.0,0.00014499,2]
[359145014,1745740231781,-300.0,0.00014499,2]
[359145015,1745740231791,-250.0,0.000145,2]
[359145016,1745740231800,-1000.0,0.000145,2]
[359145017,1745740231810,-1809.0,0.000145,2]
[359145018,1745740231819,-300.0,0.00015295,2]
[359145019,1745740231829,-300.0,0.00015295,2]
[359145020,1745740231839,-869.3485347,0.00015296,2]
[359145021,1745740231849,-541.0,0.00015949,2]
[359145022,1745740231858,-500.0,0.00016164,2]
[359145023,1745740231868,-307.87467178,0.00016287,2]
[359145024,1745740231878,-500.0,0.00016336,2]
[359145026,1745740231888,-500.0,0.00016336,2]
[359145027,1745740231898,-579.46987336,0.00016336,2]
[359145028,1745740231907,-500.0,0.00016336,2]
[359145030,1745740231918,-500.0,0.00016336,2]
[359145032,1745740231928,-500.0,0.00016336,2]
[359145034,1745740231937,-500.0,0.00016336,2]
[359145035,1745740231946,-646.44505926,0.00016336,2]
[359145037,1745740231956,-500.0,0.00016336,2]
[359145039,1745740231965,-500.0,0.00016336,2]
[359145040,1745740231974,-500.0,0.00016336,2]
[359145041,1745740231984,-241.57191998,0.00016336,2]
[359145042,1745740231994,-386.59629035,0.00016337,2]
[359145043,1745740232003,-198.16401524,0.00016337,2]
[359145044,1745740232013,-367.99468718,0.00016337,2]
[359145045,1745740232022,-500.0,0.00016337,2]
[359145046,1745740232031,-333.06460616,0.00016337,2]
[359145047,1745740232041,-171.42988046,0.00016337,2]
[359145048,1745740232050,-201.93472385,0.00016337,2]
[359145049,1745740232065,-187.47078825,0.00016338,2]
[359145050,1745740232074,-1485.78981442,0.00016338,2]
[359145051,1745740232084,-2051.38280795,0.00016338,2]
[359145052,1745740232095,-14847.87025212,0.00016338,2]
[359145053,1745740232106,-20272.5708955,0.00016338,2]
[359145054,1745740232118,-674.93676935,0.00016338,2]
[359145055,1745740232130,-389.81896244,0.00016338,2]
[359145056,1745740232142,-2462.9131946,0.00016338,2]
[359145068,1745740237837,-329300.50711804,0.00016338,2]
[359145069,1745740237847,-500.0,0.00016438,2]
[359145070,1745740237857,-472.80388031,0.00016438,2]
[359145071,1745740237867,-400.0,0.00016438,2]
[359145072,1745740237876,-400.0,0.00016438,2]
[359145073,1745740237886,-200.0,0.00016438,2]
[359145074,1745740237896,-400.0,0.00016438,2]
[359145075,1745740237905,-400.0,0.00016438,2]
[359145076,1745740237915,-400.0,0.00016438,2]
[359145077,1745740237925,-400.0,0.00016438,2]
[359145078,1745740237935,-400.0,0.00016438,2]
[359145080,1745740237945,-300.0,0.00016438,2]
[359145081,1745740237955,-300.0,0.00016438,2]
[359145082,1745740237965,-400.0,0.00016438,2]
[359145083,1745740237975,-380.4170494,0.00016438,2]
[359145084,1745740237984,-400.0,0.00016438,2]
[359145085,1745740237994,-184.39812954,0.00016438,2]
[359145086,1745740238003,-400.0,0.00016438,2]
[359145087,1745740238013,-500.0,0.00016438,2]
[359145088,1745740238022,-500.0,0.00016438,2]
[359145089,1745740238032,-500.0,0.00016438,2]
[359145090,1745740238047,-500.0,0.00016438,2]
[359145091,1745740238060,-500.0,0.00016438,2]
[359145092,1745740238070,-500.0,0.00016438,2]
[359145093,1745740238080,-400.0,0.00016438,2]
[359145094,1745740238091,-400.0,0.00016438,2]
[359145095,1745740238100,-500.0,0.00016438,2]
[359145096,1745740238110,-500.0,0.00016438,2]
[359145097,1745740238120,-500.0,0.00016438,2]
[359145098,1745740238130,-400.0,0.00016438,2]
[359145099,1745740238139,-500.0,0.00016438,2]
[359145100,1745740238149,-500.0,0.00016438,2]
[359145101,1745740238159,-151.96455328,0.00016438,2]
[359145102,1745740238168,-500.0,0.00016438,2]
[359145103,1745740238179,-535.48775758,0.00016438,2]
[359145104,1745740238188,-400.0,0.00016438,2]
[359145105,1745740238198,-400.0,0.00016438,2]
[359145106,1745740238208,-400.0,0.00016438,2]
[359145107,1745740238218,-400.0,0.00016438,2]
[359145108,1745740238228,-500.0,0.00016438,2]
[359145109,1745740238238,-400.0,0.00016438,2]
[359145110,1745740238248,-400.0,0.00016438,2]
[359145111,1745740238258,-500.0,0.00016438,2]
[359145112,1745740238267,-400.0,0.00016438,2]
[359145113,1745740238277,-500.0,0.00016438,2]
[359145114,1745740238287,-542.77479137,0.00016438,2]
[359145115,1745740238297,-500.0,0.00016438,2]
[359145116,1745740238307,-400.0,0.00016438,2]
[359145117,1745740238316,-500.0,0.00016438,2]
[359145118,1745740238325,-500.0,0.00016438,2]
[359145119,1745740238335,-400.0,0.00016438,2]
[359145120,1745740238344,-1109.79,0.00016438,2]
[359145121,1745740238354,-400.0,0.00016438,2]
[359145122,1745740238363,-400.0,0.00016438,2]
[359145123,1745740238373,-500.0,0.00016438,2]
[359145124,1745740238382,-1000.0,0.00016438,2]
[359145125,1745740238392,-317.00973594,0.00016438,2]
[359145126,1745740238410,-182.99026406,0.00016438,2]
[359145127,1745740238420,-400.0,0.00016438,2]
[359145128,1745740238429,-500.0,0.00016438,2]
[359145129,1745740238439,-400.0,0.00016438,2]
[359145130,1745740238448,-400.0,0.00016438,2]
[359145131,1745740238457,-400.0,0.00016438,2]
[359145132,1745740238467,-500.0,0.00016438,2]
[359145133,1745740238476,-500.0,0.00016438,2]
[359145134,1745740238486,-500.0,0.00016438,2]
[359145135,1745740238495,-400.0,0.00016438,2]
[359145136,1745740238504,-506.87136663,0.00016438,2]
[359145137,1745740238514,-1116.23,0.00016438,2]
[359145138,1745740238523,-500.0,0.00016438,2]
[359145139,1745740238532,-503.71042935,0.00016438,2]
[359145140,1745740238541,-500.0,0.00016438,2]
[359145141,1745740238550,-400.0,0.00016438,2]
[359145142,1745740238559,-500.0,0.00016438,2]
[359145143,1745740238569,-1047.22,0.00016438,2]
[359145144,1745740238578,-1254.46,0.00016438,2]
[359145145,1745740238587,-400.0,0.00016438,2]
[359145146,1745740238599,-500.0,0.00016438,2]
[359145147,1745740238608,-400.0,0.00016438,2]
[359145148,1745740238618,-500.0,0.00016438,2]
[359145149,1745740238629,-400.0,0.00016438,2]
[359145150,1745740238639,-500.0,0.00016438,2]
[359145151,1745740238651,-246.21385272,0.00016438,2]
[359145152,1745740238662,-500.0,0.00016438,2]
[359145153,1745740238671,-500.0,0.00016438,2]
[359145154,1745740238681,-400.0,0.00016438,2]
[359145155,1745740238690,-400.0,0.00016438,2]
[359145156,1745740238700,-400.0,0.00016438,2]
[359145157,1745740238710,-400.0,0.00016438,2]
[359145158,1745740238719,-405.8999613,0.00016438,2]
[359145159,1745740238729,-500.0,0.00016438,2]
[359145160,1745740238739,-500.0,0.00016438,2]
[359145161,1745740238748,-500.0,0.00016438,2]
[359145162,1745740238758,-17.33446628,0.00016438,2]
[359145169,1745740240263,-482.66553372,0.00016438,2]
[359145170,1745740240273,-500.0,0.00016438,2]
[359145171,1745740240283,-500.0,0.00016438,2]
[359145172,1745740240293,-209.61489107,0.00016438,2]
[359145173,1745740240303,-500.0,0.00016438,2]
[359145174,1745740240312,-500.0,0.00016438,2]
[359145175,1745740240322,-500.0,0.00016438,2]
[359145176,1745740240332,-400.0,0.00016438,2]
[359145177,1745740240342,-400.0,0.00016438,2]
[359145178,1745740240351,-400.0,0.00016438,2]
[359145179,1745740240361,-500.0,0.00016438,2]
[359145180,1745740240371,-411.06296008,0.00016438,2]
[359145181,1745740240380,-1284.81,0.00016438,2]
[359145182,1745740240390,-503.7811046,0.00016438,2]
[359145183,1745740240399,-500.0,0.00016438,2]
[359145184,1745740240409,-500.0,0.00016438,2]
[359145185,1745740240419,-400.0,0.00016438,2]
[359145186,1745740240428,-400.0,0.00016438,2]
[359145187,1745740240438,-500.0,0.00016438,2]
[359145188,1745740240447,-400.0,0.00016438,2]
[359145189,1745740240456,-500.0,0.00016438,2]
[359145190,1745740240465,-400.0,0.00016438,2]
[359145191,1745740240475,-400.0,0.00016438,2]
[359145192,1745740240484,-400.0,0.00016438,2]
[359145193,1745740240494,-400.0,0.00016438,2]
[359145194,1745740240503,-400.0,0.00016438,2]
[359145195,1745740240513,-400.0,0.00016438,2]
[359145196,1745740240523,-500.0,0.00016438,2]
[359145197,1745740240532,-400.0,0.00016438,2]
[359145198,1745740240542,-500.0,0.00016438,2]
[359145199,1745740240551,-345.75876925,0.00016438,2]
[359145201,1745740244981,-156.21822663,0.00016438,2]
[359145202,1745740244991,-500.0,0.00016438,2]
[359145203,1745740245000,-34.93177337,0.00016438,2]
[359145204,1745740245013,-465.06822663,0.00016438,2]
[359145205,1745740245190,-400.0,0.00016438,2]
[359145206,1745740245200,-500.0,0.00016438,2]
[359145207,1745740245210,-500.0,0.00016438,2]
[359145208,1745740245219,-500.0,0.00016438,2]
[359145209,1745740245229,-500.0,0.00016438,2]
[359145210,1745740245238,-500.0,0.00016438,2]
[359145211,1745740245248,-500.0,0.00016438,2]
[359145212,1745740245258,-400.0,0.00016438,2]
[359145213,1745740245268,-400.0,0.00016438,2]
[359145214,1745740245277,-500.0,0.00016438,2]
[359145215,1745740245287,-500.0,0.00016438,2]
[359145216,1745740245297,-237.41095953,0.00016438,2]
[359145218,1745740245439,-267.56809646,0.00016438,2]
[359145219,1745740245449,-400.0,0.00016438,2]
[359145220,1745740245459,-501.24500562,0.00016438,2]
[359145222,1745740245468,-500.0,0.00016438,2]
[359145224,1745740245478,-400.0,0.00016438,2]
[359145226,1745740245487,-500.0,0.00016438,2]
[359145227,1745740245497,-500.0,0.00016438,2]
[359145228,1745740245507,-500.0,0.00016438,2]
[359145229,1745740245516,-402.50057904,0.00016438,2]
[359145230,1745740245526,-400.0,0.00016438,2]
[359145231,1745740245535,-511.14060437,0.00016438,2]
[359145232,1745740245544,-400.0,0.00016438,2]
[359145233,1745740245553,-517.02748362,0.00016438,2]
[359145234,1745740245563,-400.0,0.00016438,2]
[359145235,1745740245574,-500.0,0.00016438,2]
[359145236,1745740245583,-400.0,0.00016438,2]
[359145237,1745740245593,-400.0,0.00016438,2]
[359145238,1745740245602,-400.0,0.00016438,2]
[359145239,1745740245611,-519.84485318,0.00016438,2]
[359145241,1745740245621,-459.83858815,0.00016438,2]
[359145242,1745740245631,-400.0,0.00016438,2]
[359145244,1745740245642,-500.0,0.00016438,2]
[359145246,1745740245651,-500.0,0.00016438,2]
[359145247,1745740245661,-400.0,0.00016438,2]
[359145248,1745740245671,-505.55197164,0.00016438,2]
[359145249,1745740245680,-400.0,0.00016438,2]
[359145250,1745740245689,-500.0,0.00016438,2]
[359145251,1745740245699,-500.0,0.00016438,2]
[359145252,1745740245708,-400.0,0.00016438,2]
[359145253,1745740245718,-508.66410572,0.00016438,2]
[359145254,1745740245727,-500.0,0.00016438,2]
[359145255,1745740245736,-506.40696437,0.00016438,2]
[359145256,1745740245746,-400.0,0.00016438,2]
[359145257,1745740245755,-500.0,0.00016438,2]
[359145258,1745740245764,-500.0,0.00016438,2]
[359145259,1745740245774,-515.82960303,0.00016438,2]
[359145261,1745740245783,-400.0,0.00016438,2]
[359145262,1745740245793,-500.0,0.00016438,2]
[359145263,1745740245803,-400.0,0.00016438,2]
[359145264,1745740245812,-500.0,0.00016438,2]
[359145265,1745740245822,-500.0,0.00016438,2]
[359145266,1745740245831,-400.0,0.00016438,2]
[359145267,1745740245840,-500.0,0.00016438,2]
[359145268,1745740245849,-2159.67270082,0.00016438,2]
[359145269,1745740245862,-176.84729918,0.00016438,2]
[359145270,1745740245873,-500.0,0.00016438,2]
[359145271,1745740245882,-195.38606066,0.00016438,2]
[359145272,1745740245915,-204.61393934,0.00016438,2]
[359145273,1745740245924,-126.65289666,0.00016438,2]
[359145274,1745740245936,-2120.74710334,0.00016438,2]
[359145275,1745740245945,-500.0,0.00016438,2]
[359145276,1745740245955,-400.0,0.00016438,2]
[359145277,1745740245964,-400.0,0.00016438,2]
[359145278,1745740245973,-500.0,0.00016438,2]
[359145279,1745740245983,-400.0,0.00016438,2]
[359145280,1745740245992,-500.0,0.00016438,2]
[359145281,1745740246001,-177.6714536,0.00016438,2]
[359145282,1745740246012,-222.3285464,0.00016438,2]
[359145283,1745740246021,-500.0,0.00016438,2]
[359145284,1745740246031,-2995.64,0.00016438,2]
[359145285,1745740246040,-524.01,0.00016438,2]
[359145286,1745740246050,-170.13313172,0.00016438,2]
[359145287,1745740246064,-519.28882846,0.00016438,2]